Cogmind - Beta 15 @@@ ROGUE MODE // 2025.05.27 @ 18:03:39 Player: the Result: Destroyed by as-48336 with Assembled F-torch Performance ------------- Evolutions (1) 500 Regions Visited (3) 600 Robots Destroyed (87) 435 Value Destroyed (2009) 2009 Prototype IDs (8) 160 Alien Tech Used (0) 0 Bonus (73) 73 TOTAL SCORE: 3777 Bonus ------- High Alert Combat Kills 73 Cogmind --------- Core Integrity 0/400 Matter 300/300 Energy 237/265 System Corruption 0% Temperature Danger (440) Movement Treading (240) Ox1 Location -9/Mines Parts ------- > --- POWER (1) -------- Improved Ion Engine > --- PROPULSION (3) --- Improved Treads Improved Treads > --- UTILITY (3) ------ High-capacity Storage Unit Tractor Beam > --- WEAPON (2) ------- Precision Beam Rifle Advanced Beam Cannon > --- INVENTORY (20) --- Improved Treads Improved Treads Experimental Sensor Array Seismic Detector Advanced Beam Cannon Improved Assault Rifle Improved Assault Rifle Improved Assault Rifle Improved Assault Rifle Rocket Launcher Rocket Launcher Mini Grenade Launcher Mining Laser Peak State ------------ > --- POWER ------------ Improved Ion Engine > --- PROPULSION ------- Improved Treads Improved Treads Improved Treads > --- UTILITY ---------- High-capacity Storage Unit Experimental Sensor Array Seismic Detector > --- WEAPON ----------- Precision Beam Rifle Rocket Launcher > --- INVENTORY -------- Improved Ion Engine Improved Treads Improved Treads Improved Treads Improved Treads Improved Heat Sink Medium Armor Plating Hardened Light Armor Plating Tractor Beam Precision Beam Rifle Precision Beam Rifle Advanced Beam Cannon Advanced Beam Cannon Improved Assault Rifle Improved Assault Rifle Improved Assault Rifle Improved Assault Rifle Rocket Launcher Mini Grenade Launcher Mining Laser [Rating: 29] Favorites ----------- Power Improved Ion Engine Engine Improved Ion Engine Propulsion Light Treads Treads Light Treads Wheel Wheel Utility High-capacity Storage Unit Device Seismic Detector Storage High-capacity Storage Unit Processor Transport Network Coupler Protection Light Armor Plating Weapon Precision Beam Rifle Energy Gun Precision Beam Rifle Energy Cannon Advanced Beam Cannon Ballistic Gun Autogun Ballistic Cannon Improved Light Cannon Launcher Rocket Launcher Special Weapon Mining Laser Slashing Weapon Mining Claw Build | -11 -10 -9 -9 ------- Run | Yrd Mat Mat Min Slots Evolved 2 | . . 2 . Power . | . . . . Propulsion 1 | . . 1 . Utility 1 | . . 1 . Weapon . | . . . . Parts Attached 77 | 11 19 38 9 Power 9 | 1 3 4 1 Engine 9 | 1 3 4 1 Core . | . . . . Reactor . | . . . . Propulsion 29 | 6 5 15 3 Treads 23 | . 5 15 3 Leg . | . . . . Wheel 6 | 6 . . . Hover . | . . . . Flight . | . . . . Utility 16 | 2 5 6 3 Device 7 | 1 3 2 1 Storage 2 | 1 1 . . Processor 1 | . 1 . . Hackware . | . . . . Protection 6 | . . 4 2 Artifact . | . . . . Weapon 23 | 2 6 13 2 Energy Gun 11 | 2 2 6 1 Energy Cannon 2 | . . 2 . Ballistic Gun 2 | . . 2 . Ballistic Cannon 2 | . . 2 . Launcher 2 | . 1 . 1 Special Weapon 3 | . 2 1 . Impact Weapon . | . . . . Slashing Weapon 1 | . 1 . . Piercing Weapon . | . . . . Special Melee Weapon . | . . . . Unidentified Prototypes 5 | . . 4 1 Parts Lost 10 | . 1 . 9 Power 1 | . . . 1 Propulsion 3 | . . . 3 Utility 4 | . 1 . 3 Weapon 2 | . . . 2 Highest Loss Streak 5 | . 1 . 5 To Critical Strikes . | . . . . Average Backups 14 | 4 7 16 19 Power . | . . 1 . Propulsion 2 | 2 1 3 3 Utility 3 | . 2 3 3 Weapon 7 | 1 3 8 10 Tool/Special . | . . . . Unused Backups 20 | . 1 12 7 Power 1 | . 1 . . Propulsion 5 | . . 3 2 Utility 3 | . . 3 . Weapon 11 | . . 6 5 Tool/Special . | . . . . Average Slot Usage (%) 99 | . 99 99 98 Engine 11 | . 14 11 10 Treads 31 | . 27 32 32 Device 15 | . 13 15 19 Storage 11 | . 14 11 11 Protection 3 | . . 6 1 Energy Gun 17 | . 20 15 16 Launcher 1 | . 1 . 5 Special Weapon 1 | . 3 . . Slashing Weapon 1 | . 1 2 . Peak Build Rating 29 | 7 9 25 29 Average Rating 16 | 5 8 18 24 On Entrance 10 | . 7 8 25 Naked Turns . | . . . . Heaviest Build 59 | 12 50 59 59 Greatest Support 69 | 32 40 69 69 Greatest Overweight (x) 2 | 1 1 2 1 Average Overweight (x) . | . . . . Largest Inventory Capacity 20 | 8 20 20 20 Average Capacity 16 | 7 9 20 20 Most Carried 20 | 8 10 20 20 Average Carried 14 | 4 7 16 19 Final Capacity 20 | 8 20 20 20 Final Carried 20 | 7 10 20 13 Class Distribution -------------------- 74% | Mutant 25% | Scavenger-Mutant Dominant Class ---------------- Mutant | -10/Materials Mutant | -9/Materials Mutant | -9/Mines Resources | -11 -10 -9 -9 ----------- Run | Yrd Mat Mat Min Matter Collected 1640 | 300 363 759 218 Remotely 216 | . . 191 25 Salvage Created 3127 | 154 744 1547 682 Parts 154 | 12 38 76 28 Haulers Intercepted 7 | . 2 5 . Recyclers Shooed 3 | . . 3 . Parts Field Recycled . | . . . . Retrieved Matter . | . . . . Parts Self-Destructed . | . . . . Prevented . | . . . . Kills | -11 -10 -9 -9 ------- Run | Yrd Mat Mat Min Combat Hostiles Destroyed 69 | . 15 23 31 Guns 49 | . 9 19 21 Cannons 3 | . . 1 2 AOE 16 | . 6 2 8 Classes Destroyed 14 | 2 5 4 3 Worker 1 | . . 1 . Builder 2 | . 2 . . Tunneler 5 | 4 1 . . Hauler 7 | . 2 5 . Recycler 8 | 1 2 5 . Mechanic 1 | . . 1 . Watcher 6 | . 1 5 . Swarmer 17 | . 6 5 6 Grunt 26 | . 9 9 8 Brawler 1 | . . . 1 Duelist 3 | . . 1 2 Sentry 8 | . . 8 . Demolisher 2 | . . . 2 Assembled 12 | . . . 12 Best Kill Streak 11 | 5 3 4 11 Combat Bots Only 11 | . 3 4 11 Max Kills in Single Turn 4 | 1 3 1 4 Gunslinging 1 | . . . 1 Exploded 4 | . 3 1 4 Melee . | . . . . Uniques/NPCs Destroyed . | . . . . Combat | -11 -10 -9 -9 -------- Run | Yrd Mat Mat Min Hostile Shots Fired 305 | . 70 104 131 Missed 79 | . 20 27 32 Hits 226 | . 50 77 99 Melee 15 | . . . 15 Projectile 211 | . 50 77 84 AOE 14 | . . . 14 Critical Strikes 1 | . . . 1 Damage Taken 3468 | . 576 926 1966 Core 490 | . 86 153 251 Absorbed by Shields . | . . . . Regen/Repaired (Parts) 20 | . 20 . . Core Remaining (%) 82 | 100 65 . . Volleys Fired 263 | 11 83 109 60 Largest 2 | 2 2 2 2 Hottest 136 | 90 100 136 129 Shots Fired 486 | 22 138 212 114 Gun 405 | 22 117 167 99 Cannon 50 | . . 38 12 Launcher 11 | . 4 4 3 Special 20 | . 17 3 . Kinetic 28 | . . 28 . Thermal 447 | 22 134 180 111 Explosive 11 | . 4 4 3 Electromagnetic . | . . . . Robot Hit Streak 20 | 4 14 20 8 Robot Miss Streak 6 | 2 4 4 6 Penetration Max . | . . . . Secondary Targets 7 | . 1 . 6 Max Gunslinging Chain 1 | . 1 . 1 Shots Hit Robots 305 | 13 85 131 76 Core Hits 152 | 6 38 53 55 Critical Kills . | . . . . Critical Parts Destroyed . | . . . . Critical Strikes 24 | 2 7 12 3 Burn 22 | 2 7 10 3 Blast 2 | . . 2 . Melee Attacks 18 | . 3 15 . Impact . | . . . . Slashing 18 | . 3 15 . Piercing . | . . . . Sneak Attacks . | . . . . Combat Hostiles . | . . . . Follow-up Attacks . | . . . . Damage Inflicted 5810 | 163 1251 2379 2017 Guns 4181 | 163 977 1816 1225 Cannons 526 | . . 422 104 Explosions 1079 | . 250 141 688 Melee . | . . . . Ramming . | . . . . Kinetic 298 | . . 298 . Thermal 4433 | 163 1001 1940 1329 Explosive 1079 | . 250 141 688 Electromagnetic . | . . . . Impact . | . . . . Slashing . | . . . . Piercing . | . . . . Highest Corruption . | . . . . Average Corruption . | . . . . Corruption Purged . | . . . . Corruption Blocked . | . . . . Overload Shots . | . . . . Overflow Damage 45 | . 18 15 12 Projectiles 15 | . . 15 . Explosions 30 | . 18 . 12 Melee . | . . . . Knockbacks 2 | . . 2 . Impact . | . . . . Kinetic 2 | . . 2 . Secondary . | . . . . Self-Inflicted Damage 118 | . 38 18 62 Shots 5 | . 2 1 2 Rammed . | . . . . Targets Rammed . | . . . . Kicked . | . . . . Crushed . | . . . . Highest Temperature 420 | 180 274 138 420 Average Temperature 62 | 76 54 32 120 Received Heat Transfer 719 | . 264 249 206 Effects 3 | . . . 3 Interference 3 | . . . 3 Siege Activations . | . . . . Martial Activations . | . . . . Shielding Activations . | . . . . Robots Disrupted . | . . . . Combat Hostiles . | . . . . Robots Corrupted . | . . . . Combat Hostiles . | . . . . Parts Fried . | . . . . Impact Corruptions . | . . . . Robots Melted 1 | . . 1 . Combat Hostiles 1 | . . 1 . Parts Melted 26 | . 6 17 3 Heat Transferred 11916 | 582 3194 5069 3071 Parts Sabotaged . | . . . . Parts Stolen . | . . . . Parts Stripped . | . . . . Power Chain Reactions . | . . . . Alert | -11 -10 -9 -9 ------- Run | Yrd Mat Mat Min Maximum Alert Level 2 | . . 2 2 Low Security (%) 54 | 100 100 37 25 Level 1 28 | . . 38 50 Level 2 16 | . . 23 24 Level 3 . | . . . . Level 4 . | . . . . Level 5 . | . . . . High Security . | . . . . Max Security . | . . . . Peak Influence 514 | 15 123 462 514 Initial 177 | . . 27 177 Average 194 | 2 54 244 296 Influence Increases 1923 | 25 529 894 475 Destroy 0b10 Robot/C 1140 | . 300 460 380 Destroy 0b10 Robot/NC 150 | 25 40 85 . Destroy Leader 316 | . 76 170 70 Allied During Kill 8 | . . . 8 Successful Hack 74 | . 54 20 . Disable Machine 45 | . . 45 . Destroy Structure 85 | . 29 39 17 Partial Spotted 30 | . . 30 . Lose Combat Pursuer 75 | . 30 45 . Influence Decreases 1841 | 25 462 505 849 Entered New Map 319 | . . 40 279 Time Decay 1387 | 25 457 465 440 Lost Part 90 | . . . 90 Lost Ally 40 | . . . 40 Purge Threat 5 | . 5 . . Squads Dispatched 5 | . 3 2 . Investigation 2 | . 2 . . Extermination . | . . . . Reinforcement 3 | . 1 2 . Assault . | . . . . Garrison . | . . . . Intercept . | . . . . Searches Triggered . | . . . . Construction Impeded . | . . . . Haulers Reinforced . | . . . . Active Scanning Responses . | . . . . Cargo Convoy Interrupts . | . . . . Stealth | -11 -10 -9 -9 --------- Run | Yrd Mat Mat Min Distress Signals 6 | . 2 4 . Communications Jammed . | . . . . Distress Signals . | . . . . Times Spotted 103 | . 24 40 39 Peak Tracking Total 8 | . 4 6 8 Tactical Retreats 3 | . 2 1 . Traps | -11 -10 -9 -9 ------- Run | Yrd Mat Mat Min Traps Triggered 2 | . . 2 . Indirectly . | . . . . Trap Hack Attempts . | . . . . Triggered . | . . . . Disarmed . | . . . . Reprogrammed . | . . . . Reused 1 | . . . 1 Traps Extracted . | . . . . Installed 4 | . . . 4 Triggered . | . . . . Most Traps Carried 1 | . . . 1 Machines | -11 -10 -9 -9 ---------- Run | Yrd Mat Mat Min Machines Disabled 3 | . . 3 . Max in Single Turn 1 | . . 1 . Machines Repaired . | . . . . Machines Dismantled . | . . . . Machines Sabotaged . | . . . . Overloaded Fab Kills . | . . . . Hacking | -11 -10 -9 -9 --------- Run | Yrd Mat Mat Min Machines Accessed 15 | . 8 7 . Terminals 12 | . 6 6 . Fabricators . | . . . . Repair Stations 1 | . 1 . . Recycling Units 1 | . 1 . . Scanalyzers 1 | . . 1 . Garrison Access . | . . . . Total Hacks 50 | . 32 18 . Successful 23 | . 14 9 . Failed 27 | . 18 9 . Catastrophic 4 | . 1 3 . Database Lockouts . | . . . . Manual 17 | . 9 8 . Terminals 38 | . 23 15 . Fabricators . | . . . . Repair Stations 5 | . 5 . . Recycling Units 4 | . 4 . . Scanalyzers 3 | . . 3 . Garrison Access . | . . . . Terminal Hacks 13 | . 8 5 . Part Schematic 1 | . 1 . . Robot Analysis 1 | . 1 . . Prototype ID Bank 1 | . 1 . . Alert Level 1 | . . 1 . Unreport Threat 1 | . 1 . . Locate Traps 1 | . . 1 . Hauler Manifests 1 | . 1 . . Registered Components 2 | . 1 1 . Registered Prototypes 1 | . 1 . . Zone Layout 3 | . 1 2 . Fabricator Hacks . | . . . . Repair Station Hacks 4 | . 4 . . Scan Component 3 | . 3 . . Repair 1 | . 1 . . Recycling Unit Hacks . | . . . . Scanalyzer 2 | . . 2 . Insert Component 1 | . . 1 . Analyze 1 | . . 1 . Garrison Access Hacks . | . . . . Unauthorized Hacks 4 | . 2 2 . Terminals 4 | . 2 2 . Botnet 2 | . 1 1 . Operators 2 | . 1 1 . Fabricators . | . . . . Repair Stations . | . . . . Recycling Units . | . . . . Scanalyzers . | . . . . Garrison Access . | . . . . Data Cores Recovered . | . . . . Used . | . . . . Hacking Detections 15 | . 8 7 . Full Trace Events 4 | . 4 . . Feedback Events . | . . . . Feedback Blocked . | . . . . Robot Schematics Acquired . | . . . . Robots Built . | . . . . Authchips . | . . . . Time . | . . . . Total Robot Build Rating . | . . . . Part Schematics Acquired 2 | . 1 1 . Parts Built . | . . . . Authchips . | . . . . Time . | . . . . Total Part Build Rating . | . . . . Parts Repaired 1 | . 1 . . Time 53 | . 53 . . Parts Recycled . | . . . . Recycled Matter . | . . . . Retrieved Matter . | . . . . Retrieved Components . | . . . . Parts Scanalyzed 1 | . . 1 . Part Schematics Acquired 1 | . . 1 . Parts Damaged . | . . . . Bothacking | -11 -10 -9 -9 ------------ Run | Yrd Mat Mat Min Used RIF Installer . | . . . . Robots Hacked . | . . . . Non-combat . | . . . . Combat . | . . . . Robot Hacks Applied . | . . . . Relay Couplers Released . | . . . . Fabnet Peak Effective % . | . . . . Robots Rewired . | . . . . Allies Hacked . | . . . . Hacks Repelled . | . . . . Allies | -11 -10 -9 -9 -------- Run | Yrd Mat Mat Min Total Allies 2 | . . . 2 Largest Group 2 | . . . 2 Highest-Rated Group 44 | . . . 44 Highest-Rated Ally 31 | . . . 31 Total Orders . | . . . . Ally Attacks 1 | . . . 1 Total Damage . | . . . . Kills . | . . . . Allies Corrupted . | . . . . Allies Melted . | . . . . Intel | -11 -10 -9 -9 ------- Run | Yrd Mat Mat Min Active Infowar (turns) 3203 | 10 974 1362 857 Sensors 1 | . . . 1 Structural 175 | . 175 . . Seismic 3026 | 10 797 1362 857 T.N.C. 2 | . 2 . . Robot Analysis Total 1 | . 1 . . Derelict Logs Recovered 1 | . . . 1 Drone Launches . | . . . . Drone Recoveries . | . . . . Exploration | -11 -10 -9 -9 ------------- Run | Yrd Mat Mat Min Turns Passed 4620 | 111 1370 2059 1080 Spaces Moved 2037 | 60 595 872 510 Core 10 | 10 . . . Treads 1953 | . 571 872 510 Legs . | . . . . Wheels 74 | 50 24 . . Hover . | . . . . Flight . | . . . . Fastest Speed 50 | 50 80 160 160 Average Speed 159 | 85 165 160 160 Slowest Speed 320 | 100 240 320 240 Overloaded Moves . | . . . . Propulsion Burnouts . | . . . . Robots Hopped . | . . . . Potential Cave-ins . | . . . . Cave-ins Triggered . | . . . . Exploration Rate (%) 58 | 3 87 70 74 Regions Visited 3 Branch Regions 1 Pre-discovered Areas . | . . . . Known Exits Taken . | . . . . Unknown Exits Taken 3 | 1 1 1 . Scrap Searched 1 | . . . 1 Spaces Dug 32 | . 18 14 . Terrain Destroyed 90 | . 28 40 22 Melee 14 | . 3 11 . Projectile 18 | . 15 3 . AOE 58 | . 10 26 22 Terrain Rammed . | . . . . Walls Destroyed . | . . . . Machines Disabled . | . . . . Actions | -11 -10 -9 -9 --------- Run | Yrd Mat Mat Min Total 2861 | 96 804 1304 657 Wait 277 | 6 52 166 53 Move 2034 | 59 594 871 510 Hop . | . . . . Pick Up 64 | 6 16 37 5 Fast Attach 14 | 7 2 5 . Attach 15 | . 2 4 9 Detach . | . . . . Swap 94 | 4 31 48 11 Drop 78 | 3 21 49 5 Fire 263 | 11 83 109 60 Melee 18 | . 3 15 . Ram . | . . . . Kick . | . . . . Crush . | . . . . Escape Stasis . | . . . . Rewire . | . . . . Trap 4 | . . . 4 Miscellaneous . | . . . . Route ------- -11/Scrapyard -10/Materials (discovered 4 exits: *Mat x3 / [*Min]) -9/Materials (discovered 2 exits: [*Mat] / [*Min]) -9/Mines (discovered 2 exits: [*Mat x2]) History --------- Turn | Location | Event 2 | -11/Scrapyard | Met Revision 17 11 | -11/Scrapyard | Discovered new exit (range 15) 112 | -11/Scrapyard | Entered Materials 248 | -10/Materials | Discovered new exit (range 8) 316 | -10/Materials | Build established: Mutant 481 | -10/Materials | Discovered new exit (range 3) 713 | -10/Materials | Discovered new exit (range 4) 1047 | -10/Materials | Discovered new exit (range 8) 1213 | -10/Materials | Repaired Broken Imp. Heat Sink 1482 | -10/Materials | Entered another Materials area 1482 | -9/Materials | Evolved 2 slots: Propulsion x1, Utility x1 2178 | -9/Materials | Discovered new exit (range 15) 2371 | -9/Materials | Build established: Scavenger-Mutant 3171 | -9/Materials | Discovered new exit (range 7) 3317 | -9/Materials | Build established: Mutant 3541 | -9/Materials | Entered Mines 3570 | -9/Mines | Core integrity fell below 50% 3598 | -9/Mines | Destroyed 11 combat bots 3747 | -9/Mines | Learned Materials garrison access intel 3763 | -9/Mines | Found a hidden stash of uninstalled traps 4151 | -9/Mines | Found a damaged Exp. Sensor Array with a note attached 4155 | -9/Mines | Found Prototype Device 4155 | -9/Mines | Identified Exp. Sensor Array 4170 | -9/Mines | Discovered new exit (range 8) 4447 | -9/Mines | Assembled infested the area 4452 | -9/Mines | Assisted by a Guerilla fighting off Assembled 4481 | -9/Mines | Discovered new exit (range 15) 4507 | -9/Mines | Lost 4 parts (1p1n1u1w) 4512 | -9/Mines | Lost 4 allies 4543 | -9/Mines | Destroyed 7 combat bots 4581 | -9/Mines | Core integrity fell below 20% 4616 | -9/Mines | Destroyed 7 combat bots 4621 | -9/Mines | Destroyed by as-48336 with Assembled F-torch Last Messages --------------- 04578_ Switching to secondary target: as-32692. 04581_ Prc. Beam Rifle destroyed. 04582_ K-01 Serf collects debris. 04583_ U-05 Engineer builds a Wall. 04585_ as-55335 destroyed. 04585_ K-01 Serf collects debris. 04591_ as-54525 destroyed. 04592_ Med. Armor Plating destroyed. 04595_ Acquired 11 matter. 04595_ Acquired 4 matter. 04595_ as-09084 destroyed. 04596_ Imp. Treads destroyed. 04599_ Acquired 1 matter. 04599_ Acquired 9 matter. 04604_ Imp. Heat Sink destroyed. 04605_ U-05 Engineer builds a Wall. 04609_ U-05 Engineer lays Concrete. 04610_ U-05 Engineer builds a Wall. 04611_ as-94306 destroyed. 04613_ Imp. Treads destroyed. Map ----- +----------------------------------------------------+ | ??????## !%=## #?# #???? | | ??????# ! ## ##?# #???? | | ??????# """ ##### ## #####??# #???? | | ??????# """ #???# # &##??????#&#???? | | ?????# """ ##??## #???????# #???? | | ????# ##???# ##???????# #???? | | ???# #######????# ###????????# #???? | | ???# #???????????## ##??????????# #???? | | ???## #?????????????####???????????# #???? | | ????###?????????????????????????????# #???? | | ?????????????????????????##?????????# ##??? | | ????????????????# ?????### #####???## ##?? | | ???????????????# ???## # ##### #?? | | ???????????????# ??# ## ## #?? | | ??????????????### ??# # ## # #!* ##?? | | ????????????? ## #### ##[=| ##??? | | ????????????? =* #???? | | ??????????????????# ######### ### ##???? | | ???????????????????????# ## # ####????? | | ??????????????????????### #???????? | | ?????????????????????? ?## #???????? | | ??????????????????????# ?# # #???????? | | ???????????????????#### ?#" #???????? | | ???????????????????# ?# = ###???????? | | ?????????????????????# ## !%] #?????????? | | ?????????????????????# aa@##%####?????????? | | ?????????????????????# %% %%%#????????????? | | ?????????????????????# ##%#????????????? | | ?????????????????????# ##%#????????????? | | ?????????????????????## ### #????????????? | | ??????????????????????# #?# #????????????? | | ??????????????????????# #?# ????????????? | | ?????????????????????? ? ????????????? | | ?????????????????????? ? < ????????????? | | ?????????????????????# ?# ????????????? | | ????????????????????? ?? ????????????? | | ?????????????????????## ??# ????????????? | | ??????????????????????####???#????????????? | | ??????????????????????????????????????????? | | ??????????????????????????????????????????? | | ??????????????????????????????????????????? | | ??????????????????????????????????????????? | | ??????????????????????????????????????????? | | ??????????????????????????????????????????? | | | | | | | | | | | | | +----------------------------------------------------+ Best States ------------- Heat Dissipation 42 Energy Generation 12 Energy Capacity 265 Matter Stores 300 Matter Capacity 300 Sight Range 16 Terrain Scan Density 10 Armor Coverage 225 Evasion (%) 44 Recoil Reduction 3 Item Schematics ----------------- Hcp. Storage Unit | -10/Materials | Hacked Grenade Launcher | -9/Materials | Scanalyzed Robot Schematics ------------------ None Fabricated ------------ Nothing Repaired ---------- Imp. Heat Sink | 50% | -10/Materials | Broken Alien Tech Used ----------------- None Achievements -------------- None Challenges ------------ None Game ------ Seed SegregatorTeleporterJammer Manual? 0 Play Time 00:56:03 Cumulative 98.8 hours Start 2025.05.27 @ 17:10:05 End 2025.05.27 @ 18:03:39 Sessions 1 Manual Loads 0 Difficulty Rogue Special Mode None Game No. 79 Rogue 79 Adventurer 0 Explorer 0 Win Type - Total 1 Types 1/0/0/0/0/0/0/0/0/0 Lore% 36 Gallery% 42 Achievement% 39 Wizard Run 0 Options --------- Layout 1 ASCII 0 Keyboard 0 Movement Mouse Keybinds 0 Fullscreen 1 Font 24/Smallcaps Map View 50x35 Zoom Use 0% Tactical HUD 1 Map Filters NONE Filters NONE Steam 1 RUN: 785ee2a8-8d49-436d-b527-aa1198273c45